[Event "41st Amateur D7"]
[Site "ChessGUI4"]
[Date "2013.07.05"]
[Round "7.1"]
[White "Shallow 1.0 64-bit"]
[Black "Carballo 0.8"]
[Result "1-0"]
[BlackElo "2273"]
[ECO "D45"]
[EventDate "2013.??.??"]
[TimeControl "40/1500:40/1500:40/1500"]
[WhiteElo "2200"]

{ i5 Quad } 1.d4 { [%eval 0,1] [%emt 0:00:00] } 1...d5
{ [%eval 0,1] [%emt 0:00:00] } 2.c4 { [%eval 0,1] [%emt 0:00:00] } 2...c6
{ [%eval 0,1] [%emt 0:00:00] } 3.Nc3 { [%eval 0,1] [%emt 0:00:00] } 3...Nf6
{ [%eval 0,1] [%emt 0:00:00] } 4.e3 { [%eval 0,1] [%emt 0:00:00] } 4...e6
{ [%eval 0,1] [%emt 0:00:00] } 5.Nf3 { [%eval 0,1] [%emt 0:00: 00] } 5...a6
{ [%eval 0,1] [%emt 0:00:00] } 6.Qc2 { [%eval 0,1] [%emt 0:00:00] } 6...c5
{ [%eval 0,1] [%emt 0:00:00] } 7.dxc5 { [%eval 0,1] [%emt 0:00:00] } 7...Bxc5
{ [%eval 0,1] [%emt 0:00:00] } 8.a3 { [%eval 0,1] [%emt 0:00:00] } 8...O-O
{ [%eval 0,1] [%emt 0:00:00] } 9.b4 { [%eval 12,13] [%emt 0:00:42] } 9...Bd6
{ [%eval -1,13] [%emt 0:00: 37] (Ba7) } 10.Bb2
{ [%eval 13,13] [%emt 0:00:42] (Bb2) } 10...a5
{ [%eval 12,12] [%emt 0:00:36] (a5) } 11.c5
{ [%eval 28,14] [%emt 0:00:42] (b5) } 11...axb4
{ [%eval 4, 13] [%emt 0:00:35] (axb4) } 12.axb4
{ [%eval 31,14] [%emt 0:00:42] (axb4) } 12...Rxa1+
{ [%eval 0,14] [%emt 0:00:34] (Rxa1) } 13.Bxa1
{ [%eval 18,15] [%emt 0:00:42] (Bxa1) } 13...Bc7
{ [%eval 4,14] [%emt 0:00:33] (Bc7) } 14.Nb5
{ [%eval 20,14] [%emt 0: 00:42] (Nb5) } 14...Nc6
{ [%eval -12,14] [%emt 0:00:32] (Nbd7) } 15.Bxf6
{ [%eval 41, 14] [%emt 0:00:42] (Bxf6) } 15...gxf6
{ [%eval -16,15] [%emt 0:00:32] (gxf6) } 16.Qb2
{ [%eval 38,14] [%emt 0:00:42] (Qc3) } 16...Ne5
{ [%eval -11,14] [%emt 0:00:31] (Ne5) } 17.Nfd4
{ [%eval 40,13] [%emt 0:00:42] (Nxe5) } 17...Bd7
{ [%eval -1,14] [%emt 0:00: 30] (Ng6) } 18.Be2
{ [%eval 37,14] [%emt 0:00:42] (Be2) } 18...Nc4
{ [%eval -7,14] [%emt 0:00:29] (Bb8) } 19.Qc2
{ [%eval 45,14] [%emt 0:00:42] (Bxc4) } 19...e5
{ [%eval -24,15] [%emt 0:00:29] (Ne5) } 20.Nxc7
{ [%eval 48,14] [%emt 0:00:42] (Nxc7) } 20...Qxc7
{ [%eval -24,15] [%emt 0:00:28] (Qxc7) } 21.Nb3
{ [%eval 49,13] [%emt 0:00:42] (Nf5) } 21...b5
{ [%eval -4,12] [%emt 0:00:27] (Ra8) } 22.O-O
{ [%eval 76,13] [%emt 0:00:42] (O-O) } 22...Be6
{ [%eval -7,12] [%emt 0:00:26] (f5) } 23.Ra1
{ [%eval 76,13] [%emt 0:00:42] (Ra1) } 23...Kh8
{ [%eval -14,12] [%emt 0:00:26] (f5) } 24.Bd3
{ [%eval 87,12] [%emt 0:00:42] (Qa2) } 24...h5
{ [%eval -7,12] [%emt 0:00:25] (Qb7) } 25.e4
{ [%eval 110,12] [%emt 0:00:42] (Qd1) } 25...Rg8
{ [%eval -17,12] [%emt 0:00:24] (dxe4) } 26.Qc1
{ [%eval 101,12] [%emt 0:00:42] (g3) } 26...Kg7
{ [%eval -54, 14] [%emt 0:00:24] (Kg7) } 27.exd5
{ [%eval 146,14] [%emt 0:00:42] (exd5) } 27...Bxd5
{ [%eval -35,14] [%emt 0:00:23] (Bxd5) } 28.Na5
{ [%eval 95,13] [%emt 0:00:42] (Na5) } 28...Nxa5
{ [%eval -35,14] [%emt 0:00:23] (Nxa5) } 29.Rxa5
{ [%eval 94,12] [%emt 0:00:42] (Rxa5) } 29...Qd7
{ [%eval -43,13] [%emt 0:00:22] (Qd7) } 30.Be2
{ [%eval 96,12] [%emt 0:00:42] (Be2) } 30...Bc6
{ [%eval -47,12] [%emt 0:00:21] (Bc6) } 31.Ra3
{ [%eval 83,11] [%emt 0:00:42] (Qd1) } 31...Kh7
{ [%eval -17,12] [%emt 0:00:21] (h4) } 32.Bf1
{ [%eval 63,12] [%emt 0:00:42] (g3) } 32...Qg4
{ [%eval 24,11] [%emt 0: 00:20] (Qg4) } 33.Qb1+
{ [%eval 56,13] [%emt 0:00:42] (f4) } 33...Kh8
{ [%eval -10,13] [%emt 0:00:20] (Be4) } 34.Rg3
{ [%eval 75,13] [%emt 0:00:42] (Rg3) } 34...Qd4
{ [%eval -14,13] [%emt 0:00:19] (Qd7) } 35.Rh3
{ [%eval 74,13] [%emt 0:00:42] (Rxg8) } 35...Qg4
{ [%eval -12,13] [%emt 0:00:19] (Rg5) } 36.Qb3
{ [%eval 106,13] [%emt 0:00:42] (Rg3) } 36...Rg7
{ [%eval -34,14] [%emt 0:00:18] (Be8) } 37.Qd3
{ [%eval 92,14] [%emt 0:00:42] (g3) } 37...Kg8
{ [%eval -38,13] [%emt 0:00:18] (Kg8) } 38.Qd8+
{ [%eval 88,13] [%emt 0:00:42] (Qd8) } 38...Kh7
{ [%eval -61,16] [%emt 0:00: 17] (Kh7) } 39.Rg3
{ [%eval 88,14] [%emt 0:00:42] (Qxf6) } 39...Qxb4
{ [%eval -51,14] [%emt 0:00:17] (Qf5) } 40.Qxf6
{ [%eval 102,13] [%emt 0:00:42] (Qxf6) } 40...Rxg3
{ [%eval -45,15] [%emt 0:00:17] (Rxg3) } 41.hxg3
{ [%eval 104,13] [%emt 0:00:37] (hxg3) } 41...Qxc5
{ [%eval -63,16] [%emt 0:00:54] (Qxc5) } 42.Qxf7+
{ [%eval 108,12] [%emt 0:00:37] (Qxf7) } 42...Kh6
{ [%eval -50,15] [%emt 0:00:52] (Kh6) } 43.Qf6+
{ [%eval 107,12] [%emt 0:00:37] (Be2) } 43...Kh7
{ [%eval -68,15] [%emt 0:00:51] (Kh7) } 44.Qf5+
{ [%eval 107,12] [%emt 0:00:37] (Qg5) } 44...Kg7
{ [%eval -49,15] [%emt 0:00: 50] (Kg7) } 45.Be2
{ [%eval 107,12] [%emt 0:00:37] (Qxh5) } 45...b4
{ [%eval -56,13] [%emt 0:00:48] (b4) } 46.Qg5+
{ [%eval 112,12] [%emt 0:00:37] (Bxh5) } 46...Kf7
{ [%eval -38,14] [%emt 0:00:47] (Kf7) } 47.Bxh5+
{ [%eval 112,11] [%emt 0:00:37] (Bxh5) } 47...Ke6
{ [%eval -74,14] [%emt 0:00:46] (Ke6) } 48.Bg4+
{ [%eval 111,11] [%emt 0:00:37] (Bg4) } 48...Kf7
{ [%eval -39,13] [%emt 0:00:45] (Kf7) } 49.Qf5+
{ [%eval 110,11] [%emt 0:00:37] (Kh2) } 49...Kg7
{ [%eval -81,16] [%emt 0:00:44] (Kg7) } 50.Bd1
{ [%eval 110,10] [%emt 0:00:37] (Qg5) } 50...Qd6
{ [%eval -74,13] [%emt 0:00: 43] (Qd4) } 51.Bb3
{ [%eval 118,11] [%emt 0:00:37] (Qg5) } 51...Qe7
{ [%eval -79,15] [%emt 0:00:42] (Qe7) } 52.Qg4+
{ [%eval 118,12] [%emt 0:00:37] (Qg4) } 52...Kh6
{ [%eval -90,15] [%emt 0:00:40] (Kh6) } 53.Bc2
{ [%eval 118,12] [%emt 0:00:37] (Qh3) } 53...e4
{ [%eval -99,15] [%emt 0:00:39] (Qd6) } 54.Qf5
{ [%eval 139,12] [%emt 0:00:37] (Qf5) } 54...Kg7
{ [%eval -92,15] [%emt 0:00:38] (Kg7) } 55.f3
{ [%eval 133, 11] [%emt 0:00:37] (g4) } 55...Bd7
{ [%eval -79,13] [%emt 0:00:37] (b3) } 56.Qxe4
{ [%eval 172,13] [%emt 0:00:37] (Qxe4) } 56...Qxe4
{ [%eval -133,16] [%emt 0:00:37] (Qxe4) } 57.Bxe4
{ [%eval 204,16] [%emt 0:00:37] (Bxe4) } 57...b3
{ [%eval -146,16] [%emt 0:00:36] (Ba4) } 58.Kf2
{ [%eval 318,16] [%emt 0:00:37] (g4) } 58...Be6
{ [%eval -159,16] [%emt 0:00:35] (Kf6) } 59.Ke3
{ [%eval 328,16] [%emt 0:00:37] (Ke3) } 59...Kf6
{ [%eval -238,18] [%emt 0:00:34] (Kf6) } 60.Kd3
{ [%eval 333,16] [%emt 0:00:37] (Kd4) } 60...Ke7
{ [%eval -290,18] [%emt 0:00:33] (Ke7) } 61.Kc3
{ [%eval 334,15] [%emt 0:00:37] (Kc3) } 61...Kf6
{ [%eval -309,18] [%emt 0:00:32] (Kd7) } 62.f4
{ [%eval 355,16] [%emt 0:00:37] (Bc6) } 62...b2
{ [%eval -310,19] [%emt 0:00:31] (Bf7) } 63.Kxb2
{ [%eval 483,16] [%emt 0:00:37] (Kxb2) } 63...Bd7
{ [%eval -491,23] [%emt 0:00:31] (Bg4) } 64.Kc3
{ [%eval 483,17] [%emt 0:00:37] (Kc3) } 64...Be6
{ [%eval -491,22] [%emt 0:00:30] (Be6) } 65.Kd4
{ [%eval 483,16] [%emt 0:00:37] (Kd4) } 65...Bd7
{ [%eval -506,20] [%emt 0:00:29] (Bf5) } 66.Ke3
{ [%eval 483,16] [%emt 0:00:37] (Bf3) } 66...Bg4
{ [%eval -522,21] [%emt 0:00:28] (Ke6) } 1-0

[Event "41st Amateur D7"]
[Site "ChessGUI4"]
[Date "2013.07.05"]
[Round "7.2"]
[White "MadChess 1.2"]
[Black "ChessKiss 1.7 64-bit"]
[Result "0-1"]
[BlackElo "2214"]
[ECO "A80"]
[EventDate "2013.??.??"]
[TimeControl "40/1500:40/1500:40/1500"]
[WhiteElo "2200"]

{ i5 Quad } 1.d4 { [%eval 0,1] [%emt 0:00:00] } 1...f5
{ [%eval 0,1] [%emt 0:00:00] } 2.Nf3 { [%eval 0,1] [%emt 0:00:00] } 2...Nf6
{ [%eval 0,1] [%emt 0:00:00] } 3.g3 { [%eval 0,1] [%emt 0:00:00] } 3...g6
{ [%eval 0,1] [%emt 0:00:00] } 4.Bg2 { [%eval 0,1] [%emt 0:00:00] } 4...Bg7
{ [%eval 0,1] [%emt 0:00:00] } 5.c3 { [%eval 0,1] [%emt 0:00: 00] } 5...O-O
{ [%eval 0,1] [%emt 0:00:00] } 6.Bg5 { [%eval 0,1] [%emt 0:00:00] } 6...c6
{ [%eval 0,1] [%emt 0:00:00] } 7.Nbd2 { [%eval 0,1] [%emt 0:00:00] } 7...d5
{ [%eval 0, 1] [%emt 0:00:00] } 8.Ne5 { [%eval 0,1] [%emt 0:00:00] } 8...Nbd7
{ [%eval 0,1] [%emt 0:00:00] } 9.Nd3 { [%eval 30,11] [%emt 0:00:27] } 9...h6
{ [%eval -3,13] [%emt 0:00: 43] (h6) } 10.Bxf6
{ [%eval 21,12] [%emt 0:00:43] (Bf4) } 10...Nxf6
{ [%eval -2,14] [%emt 0:00:40] (Nxf6) } 11.Qb3
{ [%eval 33,11] [%emt 0:00:42] (O-O) } 11...Kh7
{ [%eval 26,13] [%emt 0:00:40] (g5) } 12.f3
{ [%eval 13,10] [%emt 0:00:29] (O-O) } 12...Nd7
{ [%eval 42,13] [%emt 0:00:40] (Nh5) } 13.O-O
{ [%eval 14,11] [%emt 0:00:48] (O-O) } 13...e5
{ [%eval 40,12] [%emt 0:00:38] (e5) } 14.e3
{ [%eval 29,11] [%emt 0:00: 48] (e3) } 14...b6
{ [%eval 37,12] [%emt 0:00:37] (b6) } 15.f4
{ [%eval -1,10] [%emt 0: 00:24] (f4) } 15...Ba6
{ [%eval 30,13] [%emt 0:00:40] (Ba6) } 16.Nxe5
{ [%eval 25,11] [%emt 0:00:18] (Nxe5) } 16...Bxf1
{ [%eval 32,13] [%emt 0:00:35] (Bxf1) } 17.Nxc6
{ [%eval 16,12] [%emt 0:00:31] (Rxf1) } 17...Qc8
{ [%eval 67,14] [%emt 0:00:33] (Bc4) } 18.Rxf1
{ [%eval 70,13] [%emt 0:00:41] (Rxf1) } 18...Qxc6
{ [%eval 34,15] [%emt 0:00: 33] (Qxc6) } 19.Bxd5
{ [%eval 62,14] [%emt 0:01:08] (Bxd5) } 19...Qc8
{ [%eval 32,14] [%emt 0:00:31] (Qd6) } 20.Bxa8
{ [%eval 76,13] [%emt 0:00:34] (Bxa8) } 20...Qxa8
{ [%eval 18,14] [%emt 0:00:30] (Qxa8) } 21.Nc4
{ [%eval 62,12] [%emt 0:00:31] (Nf3) } 21...Qe4
{ [%eval 68,13] [%emt 0:00:30] (Nf6) } 22.Re1
{ [%eval 58,12] [%emt 0: 00:44] (Re1) } 22...Qd3
{ [%eval 53,14] [%emt 0:00:29] (Qe7) } 23.a4
{ [%eval 54,11] [%emt 0:00:34] (Ne5) } 23...Rd8
{ [%eval 90,13] [%emt 0:00:25] (Nf6) } 24.Qb5
{ [%eval 59,11] [%emt 0:00:31] (Ne5) } 24...Nf6
{ [%eval 47,13] [%emt 0:00:27] (Nf6) } 25.Na3
{ [%eval 24,12] [%emt 0:01:25] (Ne5) } 25...Qe4
{ [%eval 101,13] [%emt 0:00:26] (Qe4) } 26.Qe2
{ [%eval 48,11] [%emt 0:00:19] (Nc4) } 26...Qc6
{ [%eval 91,11] [%emt 0: 00:24] (a5) } 27.a5
{ [%eval 34,12] [%emt 0:00:41] (a5) } 27...bxa5
{ [%eval 84,12] [%emt 0:00:25] (Rc8) } 28.Nc4
{ [%eval 57,10] [%emt 0:00:28] (c4) } 28...Qa4
{ [%eval 126,12] [%emt 0:00:24] (Qa4) } 29.Ne5
{ [%eval 41,12] [%emt 0:00:41] (Na3) } 29...Rb8
{ [%eval 139,12] [%emt 0:00:24] (Qa2) } 30.h3
{ [%eval 19,11] [%emt 0:00:28] (Qg2) } 30...Qa2
{ [%eval 149,12] [%emt 0:00:23] (Qa2) } 31.Nd3
{ [%eval 11,12] [%emt 0:00:29] (Nd3) } 31...a4
{ [%eval 153,12] [%emt 0:00:22] (h5) } 32.g4
{ [%eval -23,12] [%emt 0:00:41] (Nb4) } 32...fxg4
{ [%eval 143,12] [%emt 0:00:21] (a3) } 33.hxg4
{ [%eval -26,14] [%emt 0:01:00] (hxg4) } 33...a3
{ [%eval 125,12] [%emt 0:00:21] (a3) } 34.bxa3
{ [%eval -34,15] [%emt 0:01:04] (bxa3) } 34...Qxa3
{ [%eval 120,12] [%emt 0: 00:21] (Qxe2) } 35.g5
{ [%eval -55,12] [%emt 0:00:57] (g5) } 35...hxg5
{ [%eval 116,11] [%emt 0:00:20] (hxg5) } 36.fxg5
{ [%eval -55,12] [%emt 0:00:29] (fxg5) } 36...Nh5
{ [%eval 215,11] [%emt 0:00:20] (Nh5) } 37.Nc5
{ [%eval -76,12] [%emt 0:00:45] (Nf4) } 37...Qxc3
{ [%eval 254,11] [%emt 0:00:19] (Qxc3) } 38.Ne4
{ [%eval -138,13] [%emt 0:01:35] (Ne4) } 38...Qc6
{ [%eval 285,11] [%emt 0:00:18] (Qb4) } 39.Qg2
{ [%eval -125,13] [%emt 0:01:30] (Qg2) } 39...Qc4
{ [%eval 289,11] [%emt 0:00:18] (Qc4) } 40.Nd2
{ [%eval -139,13] [%emt 0:00:32] (Qe2) } 40...Qd3
{ [%eval 350,12] [%emt 0:00: 17] (Qc3) } 41.Nf1
{ [%eval -213,14] [%emt 0:05:14] (Qe2) } 41...a5
{ [%eval 425,12] [%emt 0:00:59] (Re8) } 42.Qe2
{ [%eval -246,13] [%emt 0:01:06] (Rc1) } 42...Qf5
{ [%eval 514,14] [%emt 0:00:57] (Qf5) } 43.Qg2
{ [%eval -279,14] [%emt 0:00:59] (Qg2) } 43...a4
{ [%eval 521,13] [%emt 0:00:57] (Rb5) } 44.Re2
{ [%eval -298,14] [%emt 0:01:18] (Re2) } 44...Qa5
{ [%eval 567,13] [%emt 0:00:55] (a3) } 45.d5
{ [%eval -307, 10] [%emt 0:00:20] (Rc2) } 45...a3
{ [%eval 772,13] [%emt 0:00:53] (a3) } 46.Kh1
{ [%eval -512,12] [%emt 0:00:48] (Rd2) } 46...Rb2
{ [%eval 922,13] [%emt 0:00:51] (Bb2) } 47.Rxb2
{ [%eval -800,14] [%emt 0:00:41] (Rxb2) } 47...axb2
{ [%eval 1346,14] [%emt 0: 00:50] (Bxb2) } 48.Nd2
{ [%eval -885,14] [%emt 0:00:33] (Nd2) } 48...Be5
{ [%eval 1487, 13] [%emt 0:00:48] (Be5) } 49.Nb1
{ [%eval -1242,14] [%emt 0:00:27] (Qf2) } 0-1

[Event "41st Amateur D7"]
[Site "ChessGUI4"]
[Date "2013.07.05"]
[Round "7.3"]
[White "ProChess 1.02AD"]
[Black "FireFly 2.6.0 64-bit"]
[Result "1-0"]
[BlackElo "2258"]
[ECO "B92"]
[EventDate "2013.??.??"]
[TimeControl "40/1500:40/1500:40/1500"]
[WhiteElo "2244"]

{ i5 Quad } 1.e4 { [%eval 0,1] [%emt 0:00:00] } 1...c5
{ [%eval 0,1] [%emt 0:00:00] } 2.Nf3 { [%eval 0,1] [%emt 0:00:00] } 2...d6
{ [%eval 0,1] [%emt 0:00:00] } 3.d4 { [%eval 0,1] [%emt 0:00:00] } 3...cxd4
{ [%eval 0,1] [%emt 0:00:00] } 4.Nxd4 { [%eval 0,1] [%emt 0:00:00] } 4...Nf6
{ [%eval 0,1] [%emt 0:00:00] } 5.Nc3 { [%eval 0,1] [%emt 0:00:00] } 5...a6
{ [%eval 0,1] [%emt 0:00:00] } 6.Be2 { [%eval 0,1] [%emt 0:00: 00] } 6...e5
{ [%eval 0,1] [%emt 0:00:00] } 7.Nb3 { [%eval 0,1] [%emt 0:00:00] } 7...Be7
{ [%eval 0,1] [%emt 0:00:00] } 8.O-O { [%eval 0,1] [%emt 0:00:00] } 8...O-O
{ [%eval 0, 1] [%emt 0:00:00] } 9.Be3 { [%eval 18,12] [%emt 0:00:45] }
9...Qc7 { [%eval -60,11] [%emt 0:00:57] (Be6) } 10.g4
{ [%eval 25,12] [%emt 0:01:45] (f4) } 10...Be6
{ [%eval -38,11] [%emt 0:00:56] (Be6) } 11.g5
{ [%eval 25,13] [%emt 0:02:01] (g5) } 11...Nfd7
{ [%eval -37,12] [%emt 0:00:56] (Nfd7) } 12.Bg4
{ [%eval 29,12] [%emt 0:00:44] (Bg4) } 12...Bc4
{ [%eval -37,12] [%emt 0:00:55] (Re8) } 13.Re1
{ [%eval 45,12] [%emt 0:00:48] (Re1) } 13...a5
{ [%eval -39,12] [%emt 0:00:54] (Bxb3) } 14.Nd2
{ [%eval 53, 11] [%emt 0:00:39] (Nd2) } 14...Be6
{ [%eval -50,12] [%emt 0:00:53] (Ba6) } 15.Bxe6
{ [%eval 95,14] [%emt 0:01:17] (Bxe6) } 15...fxe6
{ [%eval -58,12] [%emt 0:00:52] (fxe6) } 16.Qg4
{ [%eval 95,13] [%emt 0:00:56] (Qg4) } 16...Nc5
{ [%eval -82,12] [%emt 0:00: 52] (Nc5) } 17.Bxc5
{ [%eval 95,12] [%emt 0:01:32] (g6) } 17...Qxc5
{ [%eval -94,12] [%emt 0:00:42] (Qxc5) } 18.Qxe6+
{ [%eval 80,12] [%emt 0:01:42] (Qxe6) } 18...Rf7
{ [%eval -117,11] [%emt 0:00:42] (Rf7) } 19.Re3
{ [%eval 77,11] [%emt 0:00:36] (g6) } 19...Bxg5
{ [%eval -70,12] [%emt 0:00:41] (Bxg5) } 20.Rf3
{ [%eval 80,11] [%emt 0:00:24] (Rf3) } 20...Bf4
{ [%eval -88,12] [%emt 0:00:41] (Bf4) } 21.Nc4
{ [%eval 88, 11] [%emt 0:00:40] (Nc4) } 21...Nc6
{ [%eval -77,12] [%emt 0:00:41] (Nc6) } 22.Na4
{ [%eval 130,12] [%emt 0:01:00] (Nxd6) } 22...Qb4
{ [%eval -68,12] [%emt 0:00:40] (Qb4) } 23.c3
{ [%eval 130,12] [%emt 0:00:17] (Ra3) } 23...Qxa4
{ [%eval -39,13] [%emt 0:00: 40] (Qxa4) } 24.b3
{ [%eval 103,14] [%emt 0:01:56] (b3) } 24...Nd8
{ [%eval -52,13] [%emt 0:00:39] (Nd8) } 25.Qxf7+
{ [%eval 99,16] [%emt 0:00:25] (Qxf7) } 25...Nxf7
{ [%eval -70,13] [%emt 0:00:39] (Nxf7) } 26.bxa4
{ [%eval 110,15] [%emt 0:00:13] (bxa4) } 26...Ng5
{ [%eval -66,13] [%emt 0:00:31] (Ng5) } 27.Rd3
{ [%eval 103,14] [%emt 0:00:15] (Rd3) } 27...Nxe4
{ [%eval -80,12] [%emt 0:00:31] (Nxe4) } 28.Rad1
{ [%eval 112,13] [%emt 0:00:11] (Nxd6) } 28...Bxh2+
{ [%eval -75,12] [%emt 0:00:31] (h6) } 29.Kxh2
{ [%eval 217,15] [%emt 0:00:17] (Kxh2) } 29...Nxf2
{ [%eval -86,13] [%emt 0: 00:31] (Nxf2) } 30.Rxd6
{ [%eval 220,14] [%emt 0:00:13] (Rxd6) } 30...Nxd1
{ [%eval -148,13] [%emt 0:00:31] (Nxd1) } 31.Rxd1
{ [%eval 227,13] [%emt 0:00:11] (Rxd1) } 31...Rc8
{ [%eval -164,13] [%emt 0:00:31] (Rc8) } 32.Nxe5
{ [%eval 256,15] [%emt 0:00: 11] (Nxe5) } 32...Kf8
{ [%eval -165,13] [%emt 0:00:31] (Kf8) } 33.c4
{ [%eval 252,15] [%emt 0:00:11] (Kg3) } 33...Ke7
{ [%eval -245,14] [%emt 0:00:31] (Ke7) } 34.Rd5
{ [%eval 269,14] [%emt 0:00:15] (Rd5) } 34...Ke6
{ [%eval -266,13] [%emt 0:00:31] (Rf8) } 35.Rxa5
{ [%eval 288,14] [%emt 0:00:10] (Rxa5) } 35...Kf5
{ [%eval -293,13] [%emt 0: 00:31] (b6) } 36.Kg3
{ [%eval 304,14] [%emt 0:00:18] (Kg3) } 36...Ke4
{ [%eval -310,13] [%emt 0:00:31] (Ke4) } 37.Nf3
{ [%eval 309,13] [%emt 0:00:20] (Nf7) } 37...g6
{ [%eval -302,13] [%emt 0:00:31] (Rc7) } 38.Ra7
{ [%eval 333,13] [%emt 0:00:11] (Re5) } 38...Rc7
{ [%eval -378,14] [%emt 0:00:31] (Kf5) } 39.a5
{ [%eval 362,15] [%emt 0:00:10] (a5) } 39...Rc5
{ [%eval -413,15] [%emt 0:00:31] (Rc5) } 40.Rxb7
{ [%eval 356, 14] [%emt 0:00:06] (Rxb7) } 40...Rxa5
{ [%eval -376,14] [%emt 0:00:31] (Rxa5) } 41.Rxh7
{ [%eval 370,16] [%emt 0:00:54] (Rxh7) } 41...Rxa2
{ [%eval -436,14] [%emt 0:00: 36] (Rxa2) } 42.Rh4+
{ [%eval 374,16] [%emt 0:01:26] (Re7) } 42...Kf5
{ [%eval -362,13] [%emt 0:00:36] (Kf5) } 43.Rg4
{ [%eval 382,16] [%emt 0:01:00] (Rf4) } 43...Ra3
{ [%eval -405,14] [%emt 0:00:36] (Kf6) } 44.Rf4+
{ [%eval 389,18] [%emt 0:00:56] (Rg5) } 44...Ke6
{ [%eval -405,14] [%emt 0:00:00] (Ke6) } 45.Kg4
{ [%eval 406,17] [%emt 0:01:23] } 45...Ra2
{ [%eval -456,14] [%emt 0:00:37] (Ra2) } 46.Nh4
{ [%eval 425, 17] [%emt 0:00:44] (Kg5) } 46...Re2
{ [%eval -473,14] [%emt 0:00:37] (Ra1) } 47.Kg5
{ [%eval 439,15] [%emt 0:00:37] (Kg5) } 47...Kd6
{ [%eval -479,14] [%emt 0:00:37] (Re5) } 48.Nxg6
{ [%eval 447,16] [%emt 0:00:34] (Nxg6) } 48...Kc5
{ [%eval -494,13] [%emt 0: 00:37] (Kc5) } 49.Kf5
{ [%eval 451,16] [%emt 0:00:41] (Kf5) } 49...Rh2
{ [%eval -510, 13] [%emt 0:00:37] (Rd2) } 50.Ne5
{ [%eval 456,18] [%emt 0:00:41] (Nf8) } 50...Rd2
{ [%eval -516,13] [%emt 0:00:37] (Rh5) } 51.Rf1
{ [%eval 461,15] [%emt 0:00:34] (Ke6) } 51...Kd6
{ [%eval -553,13] [%emt 0:00:37] } 52.Ra1
{ [%eval 475,17] [%emt 0:00: 47] (Ra1) } 52...Rc2
{ [%eval -560,12] [%emt 0:00:37] (Rf2) } 53.Rd1+
{ [%eval 494,18] [%emt 0:00:35] (Rd1) } 53...Kc7
{ [%eval -595,12] [%emt 0:00:37] (Kc7) } 54.Rd5
{ [%eval 502,17] [%emt 0:00:30] (Rd7) } 54...Rf2+
{ [%eval -631,14] [%emt 0:00:37] (Rf2) } 55.Ke4
{ [%eval 502,17] [%emt 0:00:33] (Ke6) } 1-0